Cogmind - Beta 17.1 @@@ ROGUE MODE // 2026.09.22 @ 20:17:37 Player: forty Result: Self-destructed Performance ------------- Evolutions (4) 2000 Regions Visited (11) 2200 Robots Destroyed (173) 865 Value Destroyed (6142) 6142 Prototype IDs (33) 660 Alien Tech Used (0) 0 Bonus (3946) 3946 TOTAL SCORE: 15813 Bonus ------- High Alert Combat Kills 416 Follower Combat Kills 2030 Network Hubs Disabled 200 Registered with UFD 300 Met Optimus in HQ 500 Met R17 at Cetus 500 Cogmind --------- Core Integrity 503/850 Matter 300/300 Energy 325/325 System Corruption 13% Temperature Cool (0) Movement Rolling (160) Ox4 Location -6/Hub_04(d) Parts ------- > --- POWER (2) -------- Reinforced Deuterium Engine Compact Particle Reactor > --- PROPULSION (4) --- Centrium Heavy Treads Armored Huge Wheel > --- UTILITY (7) ------ Advanced Heat Sink Huge Storage Unit Advanced Signal Interpreter Advanced Targeting Computer Core Analyzer Centrium Medium Armor Plating Medium Regenerative Plating > --- WEAPON (2) ------- Phase Cannon > --- INVENTORY (25) --- Quantum Reactor Quantum Reactor Centrium Heavy Treads Centrium Heavy Treads Centrium Heavy Treads Advanced Heat Sink Advanced Energy Well (500) Matter Compressor (250) Advanced Sensor Array Centrium Medium Armor Plating Advanced Hacking Suite Advanced System Shield Improved EM Pulse Cannon Proton Cannon Phase Cannon Proton Missile Launcher Improved Proton Missile Launcher Remote Datajack Botcube Peak State ------------ > --- POWER ------------ Reinforced Deuterium Engine Compact Particle Reactor > --- PROPULSION ------- Centrium Heavy Treads Armored Huge Wheel > --- UTILITY ---------- Improved Cooling System Advanced Cooling System Huge Storage Unit Advanced Targeting Computer Centrium Medium Armor Plating Medium Regenerative Plating Improved Hardlight Generator > --- WEAPON ----------- Phase Cannon Phase Cannon > --- INVENTORY -------- Quantum Reactor Quantum Reactor Centrium Heavy Treads Centrium Heavy Treads Centrium Heavy Treads Advanced Energy Well Matter Compressor Improved Sensor Array Advanced Signal Interpreter Core Analyzer Centrium Medium Armor Plating Centrium Medium Armor Plating Medium Reactive Plating Advanced Hacking Suite Advanced System Shield Improved EM Pulse Cannon Phase Cannon Advanced KE Penetrator Proton Missile Launcher Improved Proton Missile Launcher Remote Datajack Botcube [Rating: 101] Favorites ----------- Power Heavy Ion Engine Engine Heavy Ion Engine Power Core Fission Core Reactor Compact Particle Reactor Propulsion Light Treads Treads Light Treads Leg Aluminum Leg Wheel Compact Wheel Utility Huge Storage Unit Device Seismic Detector Storage Huge Storage Unit Processor Advanced Targeting Computer Hackware Hacking Suite Protection Light Armor Plating Weapon Phase Cannon Energy Gun Particle Gun Energy Cannon Phase Cannon Ballistic Gun Heavy Assault Rifle Ballistic Cannon Light Cannon Launcher Grenade Launcher Special Weapon CPS Tube Impact Weapon Flail Special Melee Weapon Improved Datajack Build | -11 -10 -10 -9 -9 -9 -9 -6 -6 -6 -6 -6 ------- Run | Yrd Mat Min Mat Sto Rec Scr Fac Ext Cet Arc Hub Slots Evolved 8 | . . . 2 . . . 6 . . . . Power 1 | . . . . . . . 1 . . . . Propulsion 2 | . . . . . . . 2 . . . . Utility 5 | . . . 2 . . . 3 . . . . Weapon . | . . . . . . . . . . . . Parts Attached 157 | 11 19 4 27 14 5 13 24 15 10 9 6 Power 19 | 1 3 . 3 2 . 3 1 3 1 2 . Engine 13 | 1 3 . 2 2 . 2 . 2 1 . . Core 3 | . . . 1 . . 1 1 . . . . Reactor 3 | . . . . . . . . 1 . 2 . Propulsion 28 | 4 1 . 6 4 1 3 4 2 2 1 . Treads 18 | 2 1 . 5 3 1 . 3 1 1 1 . Leg 1 | 1 . . . . . . . . . . . Wheel 9 | 1 . . 1 1 . 3 1 1 1 . . Hover . | . . . . . . . . . . . . Flight . | . . . . . . . . . . . . Utility 64 | 3 7 3 9 5 1 3 11 8 3 5 6 Device 28 | 2 4 1 3 . . 2 5 4 1 3 3 Storage 7 | 1 2 1 1 . . . 2 . . . . Processor 3 | . . . . . . . 1 . . 2 . Hackware 8 | . . . 1 2 1 . . 1 . . 3 Protection 18 | . 1 1 4 3 . 1 3 3 2 . . Artifact . | . . . . . . . . . . . . Weapon 46 | 3 8 1 9 3 3 4 8 2 4 1 . Energy Gun 13 | 2 5 1 3 . 1 . . . 1 . . Energy Cannon 12 | . . . 1 1 . . 7 1 1 1 . Ballistic Gun 8 | 1 . . 3 2 . 1 . . 1 . . Ballistic Cannon 1 | . 1 . . . . . . . . . . Launcher 5 | . 1 . 2 . . . 1 . 1 . . Special Weapon 5 | . 1 . . . . 3 . 1 . . . Impact Weapon 1 | . . . . . 1 . . . . . . Slashing Weapon . | . . . . . . . . . . . . Piercing Weapon . | . . . . . . . . . . . . Special Melee Weapon 1 | . . . . . 1 . . . . . . Unidentified Prototypes 9 | . . . 1 3 . . 1 . 4 . . Corrupted Parts 4 | . . 1 . . . . . . . 3 . System Corruption 26 | . . 8 . . . . . . . 18 . Parts Lost 5 | . . . 2 . . . . . . . 3 Power . | . . . . . . . . . . . . Propulsion . | . . . . . . . . . . . . Utility 4 | . . . 2 . . . . . . . 2 Weapon 1 | . . . . . . . . . . . 1 Highest Loss Streak 2 | . . . 1 . . . . . . . 2 To Critical Strikes . | . . . . . . . . . . . . Average Backups 20 | 6 10 15 24 24 24 17 23 22 21 20 20 Power 1 | . 1 1 1 1 2 1 1 1 1 2 2 Propulsion 4 | 3 2 2 6 7 6 3 2 1 2 3 3 Utility 7 | . 3 5 8 7 7 5 7 9 10 10 10 Weapon 6 | 1 3 5 7 6 8 6 8 8 5 4 4 Tool/Special . | . . . . . . . . . . . . Unused Backups 87 | 3 4 2 13 3 . 24 10 4 4 6 14 Power 7 | . 1 . 2 . . 2 . . . 1 1 Propulsion 17 | 1 2 . . 2 . 3 1 2 . 2 4 Utility 33 | 1 . 1 3 . . 12 4 1 3 2 6 Weapon 23 | 1 1 1 6 1 . 4 3 1 1 1 3 Tool/Special 7 | . . . 2 . . 3 2 . . . . Average Slot Usage (%) 91 | . 100 99 99 99 100 77 94 93 86 84 85 Engine 9 | . 14 14 10 11 11 8 8 7 6 5 6 Treads 10 | . 17 26 11 11 11 6 12 13 6 6 6 Wheel 10 | . 10 1 10 11 10 15 8 6 6 6 6 Device 7 | . 14 8 9 . . 1 14 16 20 14 8 Storage 9 | . 14 14 11 10 11 9 6 6 6 6 6 Processor 1 | . . . . . . . 2 6 6 13 20 Hackware 8 | . . . 7 11 19 11 6 9 . . 4 Protection 12 | . . 5 15 21 13 13 15 6 13 10 5 Energy Gun 5 | . 25 15 11 11 . . . . . . . Energy Cannon 5 | . . . 6 7 3 . 12 12 12 11 13 Ballistic Gun 1 | . 2 . 3 2 3 . . . . . . Special Melee Weapon 2 | . . . . . 7 6 . . . . . Peak Build Rating 101 | 8 12 14 24 28 24 31 64 82 100 101 99 Average Rating 32 | 6 10 10 19 22 22 17 54 69 96 96 95 On Entrance 38 | . 8 9 12 22 21 21 26 63 82 100 93 Avg Prop Armor Cover (%) 12 | 10 13 10 8 7 10 16 9 13 9 6 13 Naked Turns . | . . . . . . . . . . . . Heaviest Build 164 | 15 34 94 103 103 101 97 164 163 149 150 141 Greatest Support 80 | 40 40 40 20 16 40 28 28 28 28 80 28 Greatest Overweight (x) 8 | . 1 5 6 6 6 6 8 5 5 5 5 Average Overweight (x) 3 | . . . 5 5 5 3 4 4 4 2 4 Largest Inventory Capacity 25 | 8 15 25 25 25 25 25 25 25 25 25 25 Average Capacity 22 | 7 11 15 24 24 25 22 25 25 25 25 25 Most Carried 25 | 8 15 17 25 25 25 25 25 25 25 25 25 Average Carried 20 | 6 10 15 24 24 24 17 24 24 24 23 24 Final Capacity 25 | 8 15 25 25 25 25 25 25 25 25 25 25 Final Carried 25 | 8 15 17 25 25 24 25 25 25 25 25 22 Class Distribution -------------------- 50% | Commander-Mutant 25% | Mutant 21% | Scavenger-Mutant Dominant Class ---------------- Mutant | -10/Materials Mutant | -10/Mines Mutant | -9/Materials Commander-Mutant | -9/Storage Commander-Mutant | -9/Recycling Commander-Mutant | -9/Scraptown Commander-Mutant | -6/Factory Scavenger-Mutant | -6/Extension Scavenger-Mutant | -6/Cetus Scavenger-Mutant | -6/Archives Scavenger-Mutant | -6/Hub_04(d) Resources | -11 -10 -10 -9 -9 -9 -9 -6 -6 -6 -6 -6 ----------- Run | Yrd Mat Min Mat Sto Rec Scr Fac Ext Cet Arc Hub Matter Collected 3964 | 339 390 122 935 271 115 207 725 415 180 125 140 Remotely 55 | 55 . . . . . . . . . . . Salvage Created 7332 | 192 634 . 1475 621 150 . 1708 1033 375 639 505 Parts 382 | 16 43 . 99 28 6 . 90 29 16 32 23 Haulers Intercepted 13 | . 2 . 6 5 . . . . . . . Recyclers Shooed 6 | 1 . . . 1 . . 3 1 . . . Parts Field Recycled . | . . . . . . . . . . . . Retrieved Matter . | . . . . . . . . . . . . Parts Self-Destructed . | . . . . . . . . . . . . Prevented . | . . . . . . . . . . . . Parts Restored . | . . . . . . . . . . . . Kills | -11 -10 -10 -9 -9 -9 -9 -6 -6 -6 -6 -6 ------- Run | Yrd Mat Min Mat Sto Rec Scr Fac Ext Cet Arc Hub Combat Hostiles Destroyed 105 | . 16 . 28 4 1 . 28 12 4 4 8 Guns 30 | . 16 . 11 3 . . . . . . . Cannons 43 | . . . 7 1 1 . 15 8 . 3 8 AOE 18 | . . . 9 . . . 9 . . . . Classes Destroyed 16 | 3 4 . 2 1 . . 5 . . . 1 Worker 12 | 2 2 . 4 . . . 4 . . . . Builder 5 | . . . . . . . 4 . . . 1 Tunneler 5 | 3 . . 1 . . . 1 . . . . Hauler 13 | . 2 . 6 5 . . . . . . . Recycler 6 | 1 . . 1 2 1 . . 1 . . . Operator 16 | . 2 . 3 1 . . . 1 . 9 . Watcher 10 | . 3 . 4 . . . . . 2 . 1 Swarmer 11 | . . . 9 1 . . . 1 . . . Saboteur 1 | . . . . . . . 1 . . . . Grunt 54 | . 16 . 12 1 . . 13 8 . . 4 Brawler 3 | . . . . 1 . . 1 . . . 1 Sentry 19 | . . . 8 1 1 . 3 2 . 4 . Specialist 2 | . . . . . . . . . . . 2 Hunter 3 | . . . . . . . 3 . . . . Programmer 7 | . . . . . . . 6 . . . 1 Behemoth 2 | . . . . . . . 1 1 . . . Cetus Guard 4 | . . . . . . . . . 4 . . Best Kill Streak 12 | 2 5 . 8 2 1 . 12 5 5 4 3 Combat Bots Only 7 | . 4 . 7 2 1 . 7 5 4 1 3 Max Kills in Single Turn 6 | 1 1 . 2 1 1 . 6 1 1 1 1 Gunslinging . | . . . . . . . . . . . . Exploded 4 | . . . 2 . . . 4 . . . . Melee . | . . . . . . . . . . . . Uniques/NPCs Destroyed . | . . . . . . . . . . . . Combat | -11 -10 -10 -9 -9 -9 -9 -6 -6 -6 -6 -6 -------- Run | Yrd Mat Min Mat Sto Rec Scr Fac Ext Cet Arc Hub Hostile Shots Fired 590 | . 60 . 129 20 15 . 189 53 24 28 72 Missed 180 | . 13 . 41 5 6 . 60 22 6 7 20 Hits 410 | . 47 . 88 15 9 . 129 31 18 21 52 Projectile 410 | . 47 . 88 15 9 . 129 31 18 21 52 Critical Strikes 13 | . 2 . 2 . . . 4 . 3 1 1 Damage Taken 5328 | . 602 34 1029 238 120 . 1006 421 415 359 1104 Core 568 | . 68 . 120 10 23 . 102 64 19 . 162 Absorbed by Shields 1033 | . . . . . 34 . 437 190 114 126 132 Reduced by Siege Mode 20 | . . . . . . . . . . 20 . Ignored by Resistances 256 | . . . . . . . 243 13 . . . Regen/Repaired (Parts) 672 | . 137 . 89 260 . . 14 27 51 47 47 Core Remaining (%) 77 | 100 . 72 . . . 61 . . . . . Volleys Fired 506 | 13 64 . 102 34 4 . 102 83 12 55 37 Largest 2 | 2 2 . 2 2 2 . 2 2 2 2 2 Hottest 170 | 70 130 . 133 131 101 . 170 170 144 170 170 Shots Fired 834 | 26 118 . 181 59 6 . 149 128 18 84 65 Gun 306 | 26 114 . 118 45 3 . . . . . . Cannon 470 | . . . 52 14 3 . 139 100 13 84 65 Launcher 25 | . 1 . 11 . . . 8 . 5 . . Special 33 | . 3 . . . . . 2 28 . . . Kinetic 58 | 13 10 . 23 10 2 . . . . . . Thermal 606 | 13 107 . 121 19 . . 137 60 . 84 65 Explosive 12 | . 1 . 11 . . . . . . . . Electromagnetic 128 | . . . 26 30 4 . 10 40 18 . . Robot Hit Streak 27 | 9 16 . 10 9 4 . 19 20 7 27 12 Robot Miss Streak 10 | 1 10 . 7 3 1 . 2 3 1 3 1 Penetration Max . | . . . . . . . . . . . . Secondary Targets 7 | . 3 . 1 3 . . . . . . . Max Gunslinging Chain 1 | . 1 . 1 1 . . . . . . . Shots Hit Robots 597 | 19 99 . 102 42 47 18 71 86 11 66 36 Core Hits 336 | 7 113 1 67 17 3 . 52 20 14 24 18 Critical Kills 4 | . . . 1 . . . 1 1 . 1 . Critical Parts Destroyed 1 | . . . . . 1 . . . . . . Critical Strikes 9 | 1 . . 1 2 1 . 1 2 . 1 . Burn 3 | 1 . . . 2 . . . . . . . Meltdown 4 | . . . 1 . . . 1 1 . 1 . Corrupt 1 | . . . . . . . . 1 . . . Smash 1 | . . . . . 1 . . . . . . Melee Attacks 61 | . . . . . 43 18 . . . . . Impact 1 | . . . . . 1 . . . . . . Slashing . | . . . . . . . . . . . . Piercing . | . . . . . . . . . . . . Sneak Attacks 55 | . . . . . 38 17 . . . . . Combat Hostiles . | . . . . . . . . . . . . Follow-up Attacks . | . . . . . . . . . . . . Damage Inflicted 15888 | 242 1356 23 2767 896 171 . 4376 2014 827 1858 1358 Guns 3564 | 242 1356 . 1263 672 31 . . . . . . Cannons 8507 | . . . 571 196 60 . 2316 2014 305 1858 1187 Explosions 3714 | . . . 933 28 . . 2060 . 522 . 171 Melee 80 | . . . . . 80 . . . . . . Ramming 23 | . . 23 . . . . . . . . . Kinetic 731 | 141 97 . 261 201 31 . . . . . . Thermal 10857 | 101 1259 . 1283 300 . . 3651 1218 . 1858 1187 Explosive 858 | . . . 858 . . . . . . . . Electromagnetic 3339 | . . . 365 395 60 . 725 796 827 . 171 Impact 80 | . . . . . 80 . . . . . . Slashing . | . . . . . . . . . . . . Piercing . | . . . . . . . . . . . . Highest Corruption 13 | . . 8 . 1 1 . . . . 12 13 Average Corruption 1 | . . 8 . 1 1 . . . . 6 5 Corruption Purged 13 | . . . . . . . . . . 13 . Corruption Blocked . | . . . . . . . . . . . . Effects 54 | . . 8 . 14 14 . . . . 9 9 Message Errors 13 | . . 3 . 3 3 . . . . 2 2 Matter Fused 14 | . . 1 . 5 6 . . . . 1 1 Heat Flow Errors 5 | . . . . 1 2 . . . . . 2 Energy Discharges 9 | . . 1 . 1 2 . . . . 2 3 Data Loss (minor) 8 | . . 3 . 2 1 . . . . 1 1 Data Loss (major) 2 | . . . . . . . . . . 2 . Misfires 1 | . . . . . . . . . . 1 . Alerts 2 | . . . . 2 . . . . . . . Overload Shots . | . . . . . . . . . . . . Overflow Damage 468 | . . . 48 . 80 . 158 100 . 82 . Projectiles 236 | . . . 13 . . . 41 100 . 82 . Explosions 152 | . . . 35 . . . 117 . . . . Melee 80 | . . . . . 80 . . . . . . Knockbacks 1 | . . 1 . . . . . . . . . Impact 1 | . . 1 . . . . . . . . . Kinetic . | . . . . . . . . . . . . Secondary . | . . . . . . . . . . . . Self-Inflicted Damage 152 | . 3 . 55 . . . . . . . 94 Shots 5 | . 1 . 3 . . . . . . . 1 Rammed 3 | . . 3 . . . . . . . . . Targets Rammed 3 | . . 3 . . . . . . . . . Kicked . | . . . . . . . . . . . . Crushed . | . . . . . . . . . . . . Highest Temperature 402 | 45 332 . 288 277 190 . 162 214 382 223 402 Average Temperature 76 | 21 101 . 75 84 58 . 39 40 109 95 80 Received Heat Transfer 1397 | . 375 . 270 39 28 . 439 77 . 64 105 Effects 4 | . 3 . . . . . . . 1 . . Energy Bleed 2 | . 1 . . . . . . . 1 . . Interference 2 | . 2 . . . . . . . . . . Siege Activations 4 | . . . . . . . . . . 4 . Total Turns 73 | . . . . . . . . . . 73 . Longest Duration 28 | . . . . . . . . . . 28 . Martial Activations . | . . . . . . . . . . . . Shielding Activations . | . . . . . . . . . . . . Robots Disrupted . | . . . . . . . . . . . . Combat Hostiles . | . . . . . . . . . . . . Robots Corrupted 9 | . . . . . . . 2 3 4 . . Combat Hostiles 9 | . . . . . . . 2 3 4 . . Parts Fried 25 | . . . 1 3 2 . 5 7 7 . . Impact Corruptions 2 | . . . . . 2 . . . . . . Robots Melted 6 | . . . 1 . . . 2 1 . 2 . Combat Hostiles 5 | . . . 1 . . . 2 1 . 1 . Parts Melted 31 | . 1 . 8 . . . 14 2 . 4 2 Heat Transferred 14074 | 370 1702 . 2653 679 . . 3564 1443 . 2257 1406 Parts Sabotaged . | . . . . . . . . . . . . Parts Stolen . | . . . . . . . . . . . . Parts Stripped . | . . . . . . . . . . . . Power Chain Reactions 6 | . . . 2 1 . . 3 . . . . Alert | -11 -10 -10 -9 -9 -9 -9 -6 -6 -6 -6 -6 ------- Run | Yrd Mat Min Mat Sto Rec Scr Fac Ext Cet Arc Hub Maximum Alert Level 3 | . . . 1 . . . 3 2 1 . 1 Low Security (%) 76 | 100 100 100 88 100 100 . 28 . 39 100 77 Level 1 12 | . . . 11 . . . 37 22 60 . 22 Level 2 8 | . . . . . . . 18 77 . . . Level 3 2 | . . . . . . . 15 . . . . Level 4 . | . . . . . . . . . . . . Level 5 . | . . . . . . . . . . . . High Security . | . . . . . . . . . . . . Max Security . | . . . . . . . . . . . . Peak Influence 931 | 10 145 44 261 124 43 . 931 577 317 88 393 Initial 450 | . . 44 . 104 7 . . 450 221 33 . Average 126 | 1 76 1 98 28 5 . 345 430 208 21 129 Influence Increases 6384 | 30 554 . 1060 416 226 . 1893 1142 216 207 640 Destroy 0b10 Robot/C 3100 | . 320 . 600 160 20 . 800 660 160 80 300 Destroy 0b10 Robot/NC 400 | 30 45 . 100 45 5 . 70 25 10 45 25 Destroy Leader 674 | . 100 . 182 42 . . 214 74 . . 62 Allied During Kill 634 | . . . 15 63 . . 323 186 26 . 21 Successful Hack 203 | . 7 . 25 27 21 . 85 38 . . . Select Force Hacks 270 | . 60 . . 30 180 . . . . . . Disable Machine 480 | . 15 . 75 . . . 135 60 . 75 120 Anti-Garrison Action 150 | . . . . . . . 150 . . . . Destroy Structure 353 | . 7 . 63 4 . . 116 39 5 7 112 Lose Combat Pursuer 120 | . . . . 45 . . . 60 15 . . Influence Decreases 6008 | 30 440 114 812 643 247 . 972 1667 529 290 264 Entered New Map 924 | . . 70 . 144 14 . . 471 175 50 . Time Decay 3630 | 30 440 44 609 459 233 . 541 486 334 240 214 Lost Part 50 | . . . 20 . . . . . . . 30 Lost Ally 654 | . . . 33 40 . . 281 260 20 . 20 Purge Threat 750 | . . . 150 . . . 150 450 . . . Squads Dispatched 47 | . 8 . 2 4 . . 21 4 . . 8 Investigation 15 | . 5 . . 1 . . 7 2 . . . Extermination 5 | . . . . . . . 4 . . . 1 Reinforcement 20 | . 3 . 2 3 . . 7 2 . . 3 Assault 5 | . . . . . . . 3 . . . 2 Garrison 2 | . . . . . . . . . . . 2 Intercept . | . . . . . . . . . . . . Searches Triggered . | . . . . . . . . . . . . Construction Impeded 4 | . . . . . . . 1 1 . . 2 Haulers Reinforced 1 | . . . . . . . 1 . . . . Active Scanning Responses . | . . . . . . . . . . . . Cargo Convoy Interrupts . | . . . . . . . . . . . . Stealth | -11 -10 -10 -9 -9 -9 -9 -6 -6 -6 -6 -6 --------- Run | Yrd Mat Min Mat Sto Rec Scr Fac Ext Cet Arc Hub Distress Signals 22 | . 1 . 5 4 . . 5 4 2 . 1 Communications Jammed . | . . . . . . . . . . . . Distress Signals . | . . . . . . . . . . . . Times Spotted 240 | . 25 . 43 31 8 2 45 38 10 18 20 Peak Tracking Total 9 | . 5 . 9 6 2 2 8 7 5 1 6 Tactical Retreats 6 | . . . . 1 . . . 4 1 . . Traps | -11 -10 -10 -9 -9 -9 -9 -6 -6 -6 -6 -6 ------- Run | Yrd Mat Min Mat Sto Rec Scr Fac Ext Cet Arc Hub Traps Triggered 10 | . 3 1 . 2 . . 1 3 . . . Indirectly . | . . . . . . . . . . . . Trap Hack Attempts . | . . . . . . . . . . . . Triggered . | . . . . . . . . . . . . Disarmed . | . . . . . . . . . . . . Reprogrammed . | . . . . . . . . . . . . Reused . | . . . . . . . . . . . . Traps Extracted . | . . . . . . . . . . . . Installed . | . . . . . . . . . . . . Triggered . | . . . . . . . . . . . . Most Traps Carried 3 | . . 3 3 3 3 3 3 . . . . Machines | -11 -10 -10 -9 -9 -9 -9 -6 -6 -6 -6 -6 ---------- Run | Yrd Mat Min Mat Sto Rec Scr Fac Ext Cet Arc Hub Machines Disabled 35 | . 1 . 6 . . . 10 5 . 5 8 Max in Single Turn 5 | . 1 . 1 . . . 5 1 . 1 4 Garrison Access 3 | . . . . 1 . . 1 . . . 1 Network Hub 1 | . . . . . . . . . . . 1 Machines Repaired . | . . . . . . . . . . . . Machines Dismantled . | . . . . . . . . . . . . Machines Sabotaged . | . . . . . . . . . . . . Overloaded Fab Kills . | . . . . . . . . . . . . Hacking | -11 -10 -10 -9 -9 -9 -9 -6 -6 -6 -6 -6 --------- Run | Yrd Mat Min Mat Sto Rec Scr Fac Ext Cet Arc Hub Machines Accessed 79 | . 9 1 11 11 12 4 17 12 . . 2 Terminals 48 | . 6 . 9 8 6 . 7 10 . . 2 Fabricators . | . . . . . . . . . . . . Repair Stations 4 | . 1 . 1 1 . . 1 . . . . Recycling Units 16 | . 2 . . 1 6 . 5 2 . . . Scanalyzers 3 | . . . 1 . . . 2 . . . . Garrison Access 3 | . . . . 1 . . 2 . . . . Total Hacks 257 | . 24 1 45 27 35 33 37 44 . . 11 Successful 169 | . 16 1 26 20 28 33 17 21 . . 7 Failed 85 | . 8 . 18 7 6 . 19 23 . . 4 Catastrophic 15 | . 1 . 1 2 . . 5 6 . . . Database Lockouts 3 | . . . 1 . 1 . 1 . . . . Manual 143 | . 11 . 25 12 25 . 27 33 . . 10 Terminals 182 | . 18 . 41 19 29 . 22 42 . . 11 Fabricators . | . . . . . . . . . . . . Repair Stations 11 | . 4 . 2 3 . . 2 . . . . Recycling Units 17 | . 2 . . 1 6 . 6 2 . . . Scanalyzers 6 | . . . 2 . . . 4 . . . . Garrison Access 7 | . . . . 4 . . 3 . . . . Terminal Hacks 87 | . 6 1 13 7 13 33 3 9 . . 2 Record 33 | . . . . . . 33 . . . . . Part Schematic 4 | . 1 . . . 2 . . 1 . . . Robot Schematic 1 | . . . . . 1 . . . . . . Robot Analysis 5 | . 1 . 1 . 3 . . . . . . Prototype ID Bank 6 | . 1 . 2 1 2 . . . . . . Open Door 5 | . . 1 . 2 . . . 2 . . . Level Access Points 1 | . . . . . . . . . . . 1 Branch Access Points 2 | . . . 1 . . . 1 . . . . Terminal Index 3 | . . . 1 1 . . . 1 . . . Alert Level 7 | . 1 . 1 1 1 . 1 1 . . 1 Unreport Threat 5 | . . . 1 . . . 1 3 . . . Locate Traps 8 | . 2 . 3 2 . . . 1 . . . Maintenance Status 1 | . . . . . 1 . . . . . . Security Status 1 | . . . . . 1 . . . . . . Surveillance Status 2 | . . . 1 . 1 . . . . . . Patrol Status 1 | . . . 1 . . . . . . . . Hauler Manifests 1 | . . . 1 . . . . . . . . Registered Components 1 | . . . . . 1 . . . . . . Fabricator Hacks . | . . . . . . . . . . . . Repair Station Hacks 9 | . 3 . 2 2 . . 2 . . . . Scan Component 5 | . 2 . 1 1 . . 1 . . . . Repair 4 | . 1 . 1 1 . . 1 . . . . Recycling Unit Hacks . | . . . . . . . . . . . . Scanalyzer 4 | . . . 2 . . . 2 . . . . Insert Component 1 | . . . 1 . . . . . . . . Analyze 1 | . . . 1 . . . . . . . . Retrieve Study 2 | . . . . . . . 2 . . . . Garrison Access Hacks 1 | . . . . 1 . . . . . . . Seal Access 1 | . . . . 1 . . . . . . . Unauthorized Hacks 68 | . 7 . 9 10 15 . 10 12 . . 5 Terminals 52 | . 5 . 9 9 9 . 5 10 . . 5 Assimilate 1 | . . . 1 . . . . . . . . Botnet 16 | . 1 . 2 2 4 . . 5 . . 2 Operators 3 | . . . 1 1 . . . . . . 1 Skim 32 | . 4 . 5 6 5 . 5 5 . . 2 Fabricators . | . . . . . . . . . . . . Repair Stations . | . . . . . . . . . . . . Recycling Units 16 | . 2 . . 1 6 . 5 2 . . . Tunnel 9 | . 2 . . 1 6 . . . . . . Fedlink 7 | . . . . . . . 5 2 . . . Scanalyzers . | . . . . . . . . . . . . Garrison Access . | . . . . . . . . . . . . Data Cores Recovered 2 | . . . 2 . . . . . . . . Used 1 | . . . 1 . . . . . . . . Hacking Detections 51 | . 6 . 11 7 6 . 11 8 . . 2 Full Trace Events 1 | . . . . . . . 1 . . . . Feedback Events . | . . . . . . . . . . . . Feedback Blocked . | . . . . . . . . . . . . Robot Schematics Acquired 1 | . . . . . 1 . . . . . . Robots Built . | . . . . . . . . . . . . Authchips . | . . . . . . . . . . . . Time . | . . . . . . . . . . . . Total Robot Build Rating . | . . . . . . . . . . . . Part Schematics Acquired 5 | . 1 . 1 . 2 . . 1 . . . Parts Built . | . . . . . . . . . . . . Authchips . | . . . . . . . . . . . . Time . | . . . . . . . . . . . . Total Part Build Rating . | . . . . . . . . . . . . Part Studies Acquired 2 | . . . . . . . 2 . . . . Parts Repaired 4 | . 1 . 1 1 . . 1 . . . . Time 116 | . 26 . 26 26 . . 38 . . . . Parts Recycled . | . . . . . . . . . . . . Recycled Matter . | . . . . . . . . . . . . Retrieved Matter . | . . . . . . . . . . . . Retrieved Components . | . . . . . . . . . . . . Parts Scanalyzed 1 | . . . 1 . . . . . . . . Part Schematics Acquired 1 | . . . 1 . . . . . . . . Parts Damaged . | . . . . . . . . . . . . Bothacking | -11 -10 -10 -9 -9 -9 -9 -6 -6 -6 -6 -6 ------------ Run | Yrd Mat Min Mat Sto Rec Scr Fac Ext Cet Arc Hub Used RIF Installer . | . . . . . . . . . . . . Robots Hacked 30 | . . . . . 11 17 1 1 . . . Non-combat 12 | . . . . . 7 4 1 . . . . Combat 18 | . . . . . 4 13 . 1 . . . Robot Hacks Applied 30 | . . . . . 11 17 1 1 . . . parse_system 27 | . . . . . 9 17 . 1 . . . no_distress 1 | . . . . . 1 . . . . . . find_chute 1 | . . . . . . . 1 . . . . find_recycling 1 | . . . . . 1 . . . . . . Relay Couplers Released 7 | . . . . . . . 3 . . . 4 Machine Destruction 4 | . . . . . . . . . . . 4 Programmers 3 | . . . . . . . 3 . . . . Fabnet Peak Effective % . | . . . . . . . . . . . . Robots Rewired 30 | . . . . . 16 . . 14 . . . Allies Hacked . | . . . . . . . . . . . . Hacks Repelled . | . . . . . . . . . . . . Allies | -11 -10 -10 -9 -9 -9 -9 -6 -6 -6 -6 -6 -------- Run | Yrd Mat Min Mat Sto Rec Scr Fac Ext Cet Arc Hub Total Allies 50 | . . 4 . 10 16 1 . 18 . 1 . Largest Group 24 | . . 4 4 10 23 24 18 9 4 1 1 Highest-Rated Group 400 | . . 71 71 88 314 373 320 400 140 70 70 Highest-Rated Ally 159 | . . 31 31 16 27 57 57 159 39 70 70 Initial UFD Resources 48 | . . . . . . . 24 44 48 48 48 Total Orders 81 | . . 2 . 6 8 54 7 3 1 . . STAY 50 | . . 1 . 3 6 36 1 2 1 . . ROAM 1 | . . . . . . . 1 . . . . FOLLOW 23 | . . 1 . 3 2 15 1 1 . . . PICKUP 3 | . . . . . . 3 . . . . . EXPLORE 3 | . . . . . . . 3 . . . . RETURN 1 | . . . . . . . 1 . . . . Ally Attacks 394 | . . . 13 31 8 8 134 159 12 . 29 Total Damage 8274 | . . . 100 315 90 161 2857 3432 131 . 1188 Kills 64 | . . . 3 5 . . 19 23 4 . 10 Allies Corrupted . | . . . . . . . . . . . . Allies Melted 1 | . . . . . . . 1 . . . . Intel | -11 -10 -10 -9 -9 -9 -9 -6 -6 -6 -6 -6 ------- Run | Yrd Mat Min Mat Sto Rec Scr Fac Ext Cet Arc Hub Active Infowar (turns) 4757 | 14 648 801 1716 . . . 1343 . . 101 134 Sensors 235 | . . . . . . . . . . 101 134 Terrain 224 | . 224 . . . . . . . . . . Seismic 4298 | 14 424 801 1716 . . . 1343 . . . . Robot Analysis Total 5 | . 1 . 1 . 3 . . . . . . Derelict Logs Recovered 3 | . . 3 . . . . . . . . . Drone Launches 4 | . . . . . . . 4 . . . . Drone Recoveries 2 | . . . . . . . 2 . . . . Exploration | -11 -10 -10 -9 -9 -9 -9 -6 -6 -6 -6 -6 ------------- Run | Yrd Mat Min Mat Sto Rec Scr Fac Ext Cet Arc Hub Turns Passed 22984 | 185 1587 1274 2887 2424 2139 6439 2365 1262 756 1207 459 Spaces Moved 11641 | 84 953 663 1277 1127 1054 4326 1058 434 159 319 187 Core 953 | 9 . . . . . 944 . . . . . Treads 1066 | 60 139 606 1 . 21 . . . . 239 . Legs . | . . . . . . . . . . . . Wheels 9622 | 15 814 57 1276 1127 1033 3382 1058 434 159 80 187 Hover . | . . . . . . . . . . . . Flight . | . . . . . . . . . . . . Fastest Speed 50 | 50 100 160 145 175 175 50 140 160 160 160 160 Average Speed 159 | 137 118 161 187 189 184 136 168 167 174 223 163 Slowest Speed 560 | 160 240 175 560 190 320 190 210 175 175 240 175 Overloaded Moves . | . . . . . . . . . . . . Propulsion Burnouts . | . . . . . . . . . . . . Robots Hopped . | . . . . . . . . . . . . Potential Cave-ins . | . . . . . . . . . . . . Cave-ins Triggered . | . . . . . . . . . . . . Exploration Rate (%) 71 | 5 97 97 92 96 99 93 43 67 63 96 13 Regions Visited 11 Branch Regions 8 Pre-discovered Areas 20 | . 2 2 2 3 7 . 2 2 . . . Known Exits Taken 6 | . . . 1 1 1 . 1 1 . 1 . Unknown Exits Taken 5 | 1 1 1 . . . 1 . . 1 . . Scrap Searched 6 | . . 1 . . . 5 . . . . . Spaces Dug 50 | . 1 . . . . . 35 6 . . 8 Terrain Destroyed 335 | . 7 . 59 4 . . 70 14 . 7 174 Melee . | . . . . . . . . . . . . Projectile 97 | . 1 . . 1 . . 54 14 . 7 20 AOE 238 | . 6 . 59 3 . . 16 . . . 154 Terrain Rammed . | . . . . . . . . . . . . Walls Destroyed . | . . . . . . . . . . . . Machines Disabled . | . . . . . . . . . . . . Actions | -11 -10 -10 -9 -9 -9 -9 -6 -6 -6 -6 -6 --------- Run | Yrd Mat Min Mat Sto Rec Scr Fac Ext Cet Arc Hub Total 15358 | 128 1288 866 1587 1367 1240 4901 1495 858 622 734 272 Wait 2225 | . 185 178 64 117 126 303 233 266 407 318 28 Move 11630 | 83 952 662 1276 1126 1053 4325 1057 433 158 318 187 Hop . | . . . . . . . . . . . . Pick Up 293 | 17 21 7 39 28 . 112 26 14 11 15 3 Fast Attach 29 | 2 1 . 4 2 1 6 7 3 3 . . Attach 55 | 6 4 2 8 3 . 8 9 3 4 5 3 Detach 16 | . . . . 2 1 6 1 . 2 3 1 Swap 208 | 3 38 8 58 14 7 5 27 22 8 7 11 Drop 304 | 4 23 6 36 33 1 118 33 18 17 13 2 Fire 506 | 13 64 . 102 34 4 . 102 83 12 55 37 Melee 61 | . . . . . 43 18 . . . . . Ram . | . . . . . . . . . . . . Kick . | . . . . . . . . . . . . Crush 3 | . . 3 . . . . . . . . . Escape Stasis 24 | . . . . 8 . . . 16 . . . Rewire 4 | . . . . . 4 . . . . . . Trap . | . . . . . . . . . . . . Miscellaneous . | . . . . . . . . . . . . Route ------- -11/Scrapyard -10/Materials (discovered 4 exits: *Mat x3 / *Min) -10/Mines (discovered 2 exits: *Mat x2) -9/Materials (discovered 5 exits: *Mat x3 / *Min / *Sto) -9/Storage (discovered 2 exits: *Mat / *Rec) -9/Recycling (discovered 2 exits: [*Fac] / *Scr) -9/Scraptown (discovered 2 exits: *Fac x2) -6/Factory (discovered 7 exits: Fac x3 / *Low x2 / *Ext x2) -6/Extension (discovered 3 exits: *Fac x2 / *Cet) -6/Cetus (discovered 2 exits: *Fac / [*Arc]) -6/Archives (discovered 3 exits: *Fac / *Hub x2) -6/Hub_04(d) (discovered 4 exits: Fac x4) History --------- Turn | Location | Event 24 | -11/Scrapyard | Discovered new exit (range 15) 186 | -11/Scrapyard | Entered Materials 306 | -10/Materials | Build established: Mutant 489 | -10/Materials | Discovered new exit (range 9) 564 | -10/Materials | Discovered new exit (range 14) 1016 | -10/Materials | Discovered new exit (range 5) 1212 | -10/Materials | Discovered new exit (range 7) 1644 | -10/Materials | Repaired Lgt. Treads 1773 | -10/Materials | Entered Mines 1781 | -10/Mines | Learned Materials garrison access intel 1791 | -10/Mines | Met a Derelict bent on vengeance 1882 | -10/Mines | Discovered new exit (range 8) 2219 | -10/Mines | Assisted by bots powering up and referring to "LRC-V3" 2286 | -10/Mines | Discovered new exit (range 3) 2381 | -10/Mines | Met a Derelict who couldn't figure out how to use a Trap Extractor 2642 | -10/Mines | Found a hidden stash of uninstalled traps 2871 | -10/Mines | Received a Mining Laser from a helpful Derelict 3047 | -10/Mines | Entered Materials 3047 | -9/Materials | Accompanied by 4 allies 3047 | -9/Materials | Evolved 2 slots: Utility x2 3168 | -9/Materials | Discovered new exit (range 16) 3284 | -9/Materials | Lost 3 allies 3466 | -9/Materials | Discovered new exit (range 16) 3638 | -9/Materials | Discovered new exit (range 3) 4503 | -9/Materials | Discovered new exit (range 5) 4829 | -9/Materials | Identified exit to Mines 4829 | -9/Materials | Identified exit to Storage 4832 | -9/Materials | Destroyed 7 combat bots 4972 | -9/Materials | Central database locked down 4980 | -9/Materials | Identified exit to Materials 5002 | -9/Materials | Learned Storage emergency access door positions 5014 | -9/Materials | Learned location of Zion (-7) 5018 | -9/Materials | Build established: Scavenger-Mutant 5050 | -9/Materials | Learned location of Mines (-9) 5082 | -9/Materials | Learned 2 Storage zone layouts 5916 | -9/Materials | Repaired Lgt. Armor Plating 5934 | -9/Materials | Entered Storage 5935 | -9/Storage | Identified exit to Recycling 6038 | -9/Storage | Met 01-MTF 6211 | -9/Storage | Learned location of Armory (-4) 6460 | -9/Storage | Discovered exit to Materials (range 16) 6626 | -9/Storage | Assisted by bots powering up and referring to "LRC-V3" 6869 | -9/Storage | Repaired Huge Storage Unit 6909 | -9/Storage | Build established: Commander-Mutant 7917 | -9/Storage | Learned location of 2 exits from Materials 7961 | -9/Storage | Learned location of 1 exit from Recycling 8021 | -9/Storage | Learned Materials stockpile data 8358 | -9/Storage | Entered Recycling 8358 | -9/Recycling | Accompanied by 9 allies (01-MTF) 8359 | -9/Recycling | Identified exit to Scraptown 8998 | -9/Recycling | Learned Materials trap positions 9050 | -9/Recycling | Learned 2 Storage zone layouts 9093 | -9/Recycling | Learned 2 Storage zone layouts 9163 | -9/Recycling | Learned Materials security intel 9210 | -9/Recycling | Learned location of 2 exits from Materials 9314 | -9/Recycling | Discovered new exit (range 5) 10113 | -9/Recycling | Scanned before Scraplab entrance 10184 | -9/Recycling | Entered Scraplab 10497 | -9/Recycling | Entered Scraptown 10497 | -9/Scraptown | Accompanied by 23 allies 10497 | -9/Scraptown | System corruption cleaned by C-Scrubber 10872 | -9/Scraptown | Heard Great Nut preacher, LISTEN AND RECITE! 10996 | -9/Scraptown | Visited Cyclists 11060 | -9/Scraptown | Visited TADAMA 11102 | -9/Scraptown | Visited Spacefarers 11368 | -9/Scraptown | Visited Cave Peace 11615 | -9/Scraptown | Discovered new exit (range 3) 11756 | -9/Scraptown | Visited Assassins FH 11780 | -9/Scraptown | Visited SPCMW 11843 | -9/Scraptown | Visited Red Mages 11933 | -9/Scraptown | Visited UFD Registry 11933 | -9/Scraptown | Registered with UFD as "Thermosplitter" 12006 | -9/Scraptown | Visited Derelict Rescue Squad 12058 | -9/Scraptown | Visited Junk Repository 12250 | -9/Scraptown | Visited Junk Repository 12304 | -9/Scraptown | Visited Scrapoid Research Area 12358 | -9/Scraptown | Visited Botcube Research 12398 | -9/Scraptown | Visited Supply Room 12421 | -9/Scraptown | Visited DA-N13 Charitable Foundation 12428 | -9/Scraptown | Found DCF Scrap (31 items) 12510 | -9/Scraptown | Visited Scrap Suit Storage 12568 | -9/Scraptown | Visited Curators Association 13110 | -9/Scraptown | Discovered new exit (range 5) 14685 | -9/Scraptown | Found Relay Coupler [Proto] 14687 | -9/Scraptown | Found Relay Coupler [Proto] 14690 | -9/Scraptown | Found Relay Coupler [Proto] 14692 | -9/Scraptown | Found Relay Coupler [Proto] 14882 | -9/Scraptown | Found Botcube 14962 | -9/Scraptown | Found Scrap Suit 15384 | -9/Scraptown | Botcube activated 15406 | -9/Scraptown | Botcube completed mutation into treaded form, armed with 2 guns 16360 | -9/Scraptown | Found Scrap Suit 16844 | -9/Scraptown | Met Optimus 16844 | -9/Scraptown | Accepted into 0bPrime 16933 | -9/Scraptown | Civil war broke out across Scraptown 16936 | -9/Scraptown | Entered Factory 16936 | -6/Factory | Accompanied by 18 allies 16936 | -6/Factory | Evolved 6 slots: Power x1, Propulsion x2, Utility x3 16936 | -6/Factory | Attached CPS modules to Mutated Botcube 16978 | -6/Factory | Discovered new exit (range 11) 17102 | -6/Factory | Loaded intel: 8 recycling unit locations 17138 | -6/Factory | Allied Derelicts emerged from ambush trap array 17274 | -6/Factory | Repaired Imp. Sensor Array 17388 | -6/Factory | Central database locked down 17528 | -6/Factory | Learned location of Protoforge (-2) 17633 | -6/Factory | Spotted B-75 Beast 17643 | -6/Factory | Destroyed B-75 Beast 17801 | -6/Factory | Lost 5 allies 17891 | -6/Factory | Lost 3 allies 18158 | -6/Factory | Lost 5 allies 18171 | -6/Factory | P-70 Sage assimilated allied US-LFC(g) 18452 | -6/Factory | Build established: Mutant 18671 | -6/Factory | Found Botcube 18686 | -6/Factory | First assault squad dispatched 18698 | -6/Factory | Watched by a mysterious "MATRIX" hacker 18801 | -6/Factory | Learned Hub_04(d) stockpile data 18802 | -6/Factory | Destroyed 7 combat bots 18827 | -6/Factory | Learned 2 Lower Caves zone layouts 18829 | -6/Factory | Identified exit to Factory 18830 | -6/Factory | Learned Hub_04(d) stockpile data 18842 | -6/Factory | Learned 2 Proximity Caves zone layouts 18864 | -6/Factory | Learned 2 Hub_04(d) zone layouts 18903 | -6/Factory | Identified exit to Lower Caves 18903 | -6/Factory | Identified exit to Extension 19231 | -6/Factory | Destroyed 7 combat bots 19301 | -6/Factory | Entered Extension 19572 | -6/Extension | Rescued A7 19618 | -6/Extension | Build established: Hacker-Mutant 19795 | -6/Extension | Attached CPS modules to A7 19831 | -6/Extension | Rescued a captive Derelict 19834 | -6/Extension | Spotted B-75 Beast 19835 | -6/Extension | Rescued a captive Derelict 19875 | -6/Extension | Spotted B-75 Beast 19894 | -6/Extension | Allies destroyed B-75 Beast 19897 | -6/Extension | Lost 5 allies 19900 | -6/Extension | Identified exit to Cetus 19903 | -6/Extension | Destroyed B-75 Beast 20002 | -6/Extension | Learned location of 1 exit from Upper Caves 20035 | -6/Extension | Learned Hub_04(d) non-interactive machine intel 20037 | -6/Extension | Rescued a captive Derelict 20037 | -6/Extension | Rescued a captive Derelict 20056 | -6/Extension | Learned 4 Hub_04(d) zone layouts 20077 | -6/Extension | Loaded intel: 2 recycling unit locations 20124 | -6/Extension | Learned location of 2 exits from Archives 20173 | -6/Extension | Learned location of Warlord (-4) 20186 | -6/Extension | Build established: Scavenger-Mutant 20220 | -6/Extension | Extracted ID and sensor layout for unrecognized location from A7's data core 20234 | -6/Extension | Found Med. Regenerative Plating 20563 | -6/Extension | Entered Cetus 20563 | -6/Cetus | Accompanied by 4 allies 20592 | -6/Cetus | Spotted Cetus Guard 20593 | -6/Cetus | Spotted Cetus Guard 20596 | -6/Cetus | Allies destroyed Cetus Guard 20597 | -6/Cetus | Spotted Cetus Guard 20600 | -6/Cetus | Allies destroyed Cetus Guard 20601 | -6/Cetus | Spotted Cetus Guard 20604 | -6/Cetus | Allies destroyed Cetus Guard 20606 | -6/Cetus | Allies destroyed Cetus Guard 20725 | -6/Cetus | Discovered new exit (range 15) 20759 | -6/Cetus | Spotted Cetus Guard 20759 | -6/Cetus | Spotted Cetus Guard 20767 | -6/Cetus | Destroyed Cetus Guard 20767 | -6/Cetus | Spotted Cetus Guard 20769 | -6/Cetus | Spotted Cetus Guard 20771 | -6/Cetus | Destroyed Cetus Guard 20776 | -6/Cetus | Destroyed Cetus Guard 20779 | -6/Cetus | Destroyed Cetus Guard 20802 | -6/Cetus | Met Revision 17 21313 | -6/Cetus | Security sweep announced 21319 | -6/Cetus | Entered Archives 21320 | -6/Archives | Identified exit to Hub_04(d) 21743 | -6/Archives | Discovered exit to Hub_04(d) (range 15) 22129 | -6/Archives | Botcube activated 22149 | -6/Archives | Botcube completed mutation into treaded form, armed with 2 guns 22248 | -6/Archives | System corruption reached 10% 22526 | -6/Archives | Entered Hub_04(d) 22526 | -6/Hub_04(d) | Accompanied by 1 ally 22529 | -6/Hub_04(d) | Loaded intel: 83 non-interactive machine locations 22546 | -6/Hub_04(d) | Garrison activated, responded to threat 22721 | -6/Hub_04(d) | Garrison activated, responded to threat 22888 | -6/Hub_04(d) | Found Botcube 22964 | -6/Hub_04(d) | Network Hub disabled 22976 | -6/Hub_04(d) | Spotted Lightning 22980 | -6/Hub_04(d) | Spotted Lightning 22980 | -6/Hub_04(d) | Spotted Lightning 22985 | -6/Hub_04(d) | Self-destructed Last Messages --------------- 22978_ Penetrated by EMDS Slug. 22979_ EMDS Slug penetrates Wall. 22979_ Slug penetrates Wall. 22980_ Penetrated by Slug. 22980_ EMDS Slug penetrates Wall. 22980_ Phase Cannon+ destroyed. 22981_ Penetrated by EMDS Slug. 22983_ Penetrated by Slug. 22984_ Penetrated by EMDS Slug. 22984_ ALERT: Garrison Access compromised, dispatching multiple assault carriers. 22984_ Garrison Access disabled. 22984_ Relay Coupler [Grunt] tumbles out of Garrison Access. 22984_ Relay Coupler [Sentry] tumbles out of Garrison Access. 22984_ Relay Coupler [Behemoth] tumbles out of Garrison Access. 22984_ Relay Coupler [Sentry] tumbles out of Garrison Access. Map ----- +----------------------------------------------------+ | | | | | | | | | ?????????????????????????????????????????????????? | | ?????????????????????????????????????????????????? | | ?????????????????????????????????????????????????? | | ?????????????????????????????????????????????????? | | ?????????????????###########???????##????????????? | | ?????????????????# +??????? ????????????? | | ?????????????????# #???????# #???????????? | | ?????????????????#] #???????# ##?"?"??????? | | ?????????????????# #???????# "?"?"??????? | | ?????????????????# ######### #?"?" "" ? | | ?????????????????# # # #? "" | | ?????????????????# # """" # # "" | | ?????????????????# " " """"""""" | | ????????????????######+###;" " | | ????""""????????# " " | | ????""""????????# " % % " """"""""" | | ????""""????????# i " # ###! "" ? | | ????""""????????######;##h## "" # #?# " "" ?? | | ????????????????## # """" # ### " #???? | | ?????????????????# """ "hhh# """" # + " #???? | | ?????????????????# # # ### #???? | | ?????????????????# """ !@!;####+### ##" #???? | | ?????????????????# "! # #?????# # #=[= #???? | | ?????????????????# """ "G"!###?????# ###]]%%##### | | ?????????!???????# """ #???#??## ###]%% + | | ???"?"?"?????????# #???# ## #####!####+ | | ???"?"?"?????????###########???# #?##%%#???? | | ???"?"?"???????????????????????#### T #?#=#!#???" | | ????????????????????"?????????????# #####+## " | | ????????????????????"?!?????????####+######[*[+% " | | ????????????????????"???????????# ! #["!=#= | | ????????????????????????????????# ##"![#??" | | ????????????????????"???????????# """"![ ##"= #??" | | ????????????????????"???????????# """"%! ## % #??" | | ????????????????????"???????????# """==% ## "#??? | | ????????????????????????????????# """ = ## T#??? | | ????????????????????????????????# % ## "#??? | | ??????""""??????????????????????# =!## #??? | | ??????""""???????"""????????????#[ = ####+#??? | | ??????""""??????????????????????###########?? ???? | | ??????""""???"""?"""????????????????????## #?#???? | | ??????????????????????????????????????????# #????? | | ?????????????"""?"""???????????????????????# #???? | | ????????????????????????????????????????????#"#??? | | ????????????????????????????????????????????? ?? | | ?????????????????????????????????????????????" ? | +----------------------------------------------------+ Best States ------------- Heat Dissipation 118 Coolant Potential 50 Energy Generation 43 Energy Capacity 500 Matter Stores 300 Matter Capacity 300 Sight Range 16 Robot Scan Range 16 Terrain Scan Range 16 Terrain Scan Density 10 Armor Coverage 900 Resistance: KI 30 Resistance: TH 15 Melee Speed Boost 20 Evasion (%) 50 Targeting Accuracy 8 Core Analysis 6 Recoil Reduction 2 Offensive Hacking 30 Defensive Hacking 12 Item Schematics ----------------- Huge Storage Unit | -10/Materials | Hacked Lgt. Treads | -9/Materials | Scanalyzed Cargo Storage Unit | -9/Recycling | Hacked Imp. Light Armor Plating | -9/Recycling | Hacked Plasma Cutter | -6/Extension | Hacked Robot Schematics ------------------ L-31 Rogue | -9/Recycling | Hacked Fabricated ------------ Nothing Repaired ---------- Lgt. Treads | 2% | -10/Materials Lgt. Armor Plating | 1% | -9/Materials Huge Storage Unit | 56% | -9/Storage Imp. Sensor Array | 36% | -6/Factory Studied --------- Com. Wheel | -6/Factory | Hacked Phase Cannon | -6/Factory | Hacked Alien Tech Used ----------------- None Achievements -------------- Civilization 2243 Frankenstein Frienemies Hulk Smash Junior Dev Link The Feds Network Effect Uncivil War We Are Legion You May Approach The Wall Challenges ------------ None Game ------ Seed SurveybotDispersalShifter Manual? 0 Play Time 04:58:44 Cumulative 85.2 hours Start 2026.09.15 @ 15:46:58 End 2026.09.22 @ 20:17:37 Sessions 11 Manual Loads 0 Difficulty Rogue Special Mode None Game No. 14 Rogue 11 Adventurer 3 Explorer 0 Win Type - Total 5 Types 4/1/0/0/0/0/0/0/0/0 Lore% 38 Gallery% 49 Achievement% 41 Wizard Run 0 Options --------- Layout 1 ASCII 0 Keyboard 0 Movement Mouse Keybinds 0 Fullscreen 2 Font 20/SmallcapsGlow Map View 50x35 Zoom Use 49% Tactical HUD 1 Map Filters NONE Filters NONE Steam 1 RUN: b2376b6a-2be9-49ba-aaa3-c5c5d9fc5ea7